fUSD/lending_fUSD_20250115
["ID","MTS","AMOUNT","RATE_DAILY","PERIOD"]
[349132157,1736982658272,-500.0,0.00043498,4]
[349132158,1736982658281,-500.0,0.00043498,4]
[349132159,1736982658290,-703.13,0.00043498,4]
[349132160,1736982658306,-703.13,0.00043498,4]
[349132161,1736982658315,-911.89,0.00043498,4]
[349132162,1736982658325,-911.89,0.00043498,4]
[349132163,1736982658334,-911.89,0.00043498,4]
[349132164,1736982658343,-911.89,0.00043498,4]
[349132165,1736982658353,-547.64584499,0.00043498,4]
[349132166,1736982658362,-327.71214388,0.00043498,4]
[349132167,1736982658372,-500.0,0.00043498,4]
[349132168,1736982658381,-500.0,0.00043498,4]
[349132169,1736982658391,-500.0,0.00043498,4]
[349132170,1736982658400,-500.0,0.00043498,4]
[349132171,1736982658410,-500.0,0.00043498,4]
[349132172,1736982658418,-1084.28,0.00043498,4]
[349132173,1736982658427,-500.0,0.00043498,4]
[349132174,1736982658436,-939.23,0.00043498,4]
[349132175,1736982658446,-939.23,0.00043498,4]
[349132176,1736982658455,-500.0,0.00043498,4]
[349132177,1736982658465,-500.0,0.00043498,4]
[349132178,1736982658475,-685.68,0.00043498,4]
[349132179,1736982658484,-685.68,0.00043498,4]
[349132180,1736982658494,-860.15,0.00043498,4]
[349132181,1736982658503,-860.15,0.00043498,4]
[349132182,1736982658512,-860.15,0.00043498,4]
[349132183,1736982658521,-860.15,0.00043498,4]
[349132184,1736982658530,-710.33,0.00043498,4]
[349132185,1736982658539,-720.48,0.00043498,4]
[349132186,1736982658550,-720.48,0.00043498,4]
[349132187,1736982658559,-720.48,0.00043498,4]
[349132188,1736982658569,-500.0,0.00043498,4]
[349132189,1736982658578,-720.48,0.00043498,4]
[349132190,1736982658588,-500.0,0.00043498,4]
[349132191,1736982658597,-500.0,0.00043498,4]
[349132192,1736982658606,-500.0,0.00043498,4]
[349132193,1736982658615,-500.0,0.00043498,4]
[349132194,1736982658625,-500.0,0.00043498,4]
[349132195,1736982658634,-500.0,0.00043498,4]
[349132196,1736982658643,-500.0,0.00043498,4]
[349132197,1736982658653,-500.0,0.00043498,4]
[349132198,1736982658663,-500.0,0.00043498,4]
[349132199,1736982658672,-500.0,0.00043498,4]
[349132200,1736982658681,-500.0,0.00043498,4]
[349132201,1736982658691,-500.0,0.00043498,4]
[349132202,1736982658700,-500.0,0.00043498,4]
[349132203,1736982658710,-500.0,0.00043498,4]
[349132204,1736982658719,-274.79,0.00043498,4]
[349132205,1736982658729,-2344.4,0.00043498,4]
[349132206,1736982658738,-500.0,0.00043498,4]
[349132207,1736982658748,-2344.4,0.00043498,4]
[349132208,1736982658757,-500.0,0.00043498,4]
[349132209,1736982658767,-2344.4,0.00043498,4]
[349132210,1736982658776,-2344.4,0.00043498,4]
[349132211,1736982658786,-641.34,0.00043498,4]
[349132212,1736982658795,-641.34,0.00043498,4]
[349132213,1736982658805,-1210.68,0.00043498,4]
[349132214,1736982658815,-1210.68,0.00043498,4]
[349132215,1736982658824,-159.595454,0.00043498,4]
[349132216,1736982658833,-1137.53,0.00043498,4]
[349132217,1736982658842,-159.595454,0.00043498,4]
[349132218,1736982658852,-1137.53,0.00043498,4]
[349132219,1736982658862,-159.595454,0.00043498,4]
[349132220,1736982658871,-587.28,0.00043498,4]
[349132221,1736982658881,-159.595454,0.00043498,4]
[349132222,1736982658891,-587.28,0.00043498,4]
[349132223,1736982658901,-587.28,0.00043498,4]
[349132224,1736982658910,-587.28,0.00043498,4]
[349132225,1736982658920,-500.0,0.00043498,4]
[349132226,1736982658929,-500.0,0.00043498,4]
[349132227,1736982658939,-500.0,0.00043498,4]
[349132228,1736982658948,-500.0,0.00043498,4]
[349132229,1736982658957,-500.0,0.00043498,4]
[349132230,1736982658967,-500.0,0.00043498,4]
[349132231,1736982658977,-500.0,0.00043498,4]
[349132232,1736982658986,-500.0,0.00043498,4]
[349132233,1736982658999,-513.54,0.00043498,4]
[349132234,1736982659008,-513.54,0.00043498,4]
[349132235,1736982659017,-500.0,0.00043498,4]
[349132236,1736982659029,-197.86816764,0.00043498,4]
[349132237,1736982659039,-71985.19619008,0.00043499,24]
[349132266,1736983579280,839.55,9.99e-05,2]
[349132267,1736983579310,799.7339861,9.99e-05,2]
[349132268,1736983579339,799.7339861,9.99e-05,2]
[349132269,1736983579365,799.7339861,9.99e-05,2]
[349132270,1736983579392,799.7339861,9.99e-05,2]
[349132271,1736983579417,799.7339861,9.99e-05,2]
[349132272,1736983579443,799.7339861,9.99e-05,2]
[349132273,1736983579468,799.7339861,9.99e-05,2]
[349132274,1736983579492,799.7339861,9.99e-05,2]
[349132275,1736983579525,1527.25427205,9.99e-05,2]
[349132300,1736983747150,-300.0,9.989e-05,2]
[349132301,1736983747171,-3001.50386806,9.99e-05,2]
[349132313,1736983832063,-1550.54143374,9.99e-05,2]
[349132314,1736983832117,-1795.50326023,9.99e-05,2]
[349132315,1736983832129,-564.1750084,9.99e-05,2]
[349132316,1736983832140,-17326.75072761,9.99e-05,2]
[349132317,1736983832150,-150.0,9.999e-05,2]
[349132318,1736983832160,-67976.91071666,0.0001,2]
[349132319,1736983832171,-158.63,0.00010137,2]
[349132320,1736983832180,-150.0,0.00010999,2]
[349132321,1736983832190,-550.0,0.00011,2]
[349132322,1736983832200,-107588.62050361,0.000195,2]
[349132323,1736983832209,-81133.67112329,0.000195,2]
[349132324,1736983832219,-156.08928959,0.00021518,2]
[349132325,1736983832229,-4500.0,0.00021618,2]
[349132326,1736983832239,-489.0,0.00021618,120]
[349132327,1736983832248,-156.08928958,0.00024192,2]
[349132328,1736983832258,-156.08928958,0.00026867,2]
[349132329,1736983832268,-156.08928958,0.00029541,2]
[349132330,1736983832278,-150.99999965,0.00031,2]
[349132331,1736983832288,-156.08928958,0.00032216,2]
[349132332,1736983832297,-166.41,0.00033237,2]
[349132333,1736983832307,-850.0,0.00034,120]
[349132334,1736983832317,-570.52,0.00034889,2]
[349132335,1736983832331,-156.08928958,0.0003489,2]
[349132336,1736983832340,-2112.0,0.000371,3]
[349132337,1736983832350,-650.0,0.00038,120]
[349132338,1736983832361,-361.26,0.00039568,2]
[349132339,1736983832370,-998.28568447,0.0004,30]
[349132340,1736983832379,-250.0,0.0004,2]
[349132341,1736983832389,-250.0,0.0004006,2]
[349132342,1736983832399,-250.0,0.00041123,120]
[349132343,1736983832409,-22897.07937906,0.00041412,2]
[349132344,1736983832428,-1002.92062094,0.00041412,2]
[349132345,1736983832438,-1000.0,0.00041549,2]
[349132346,1736983832447,-250.0,0.00041574,2]
[349132347,1736983832457,-305.16,0.00041646,2]
[349132348,1736983832466,-293.96,0.00041683,2]
[349132349,1736983832475,-1031.31733327,0.00041827,117]
[349132350,1736983832487,-3148.40007728,0.00041827,117]
[349132351,1736983832498,-101.28258945,0.00041827,117]
[349132352,1736983832508,-361.26,0.00041832,2]
[349132353,1736983832518,-329.8426,0.00041913,2]
[349132354,1736983832531,-180.0,0.00041984,2]
[349132355,1736983832541,-200.0,0.00042,15]
[349132356,1736983832551,-550.0,0.00042,120]
[349132358,1736983832560,-162.66,0.00042088,2]
[349132360,1736983832570,-261.31,0.00042098,120]
[349132362,1736983832580,-500.0,0.000421,15]
[349132364,1736983832590,-800.0,0.000422,15]
[349132366,1736983832599,-1000.0,0.000423,15]
[349132368,1736983832608,-1300.0,0.000424,15]
[349132370,1736983832618,-1000.0,0.000424,2]
[349132372,1736983832627,-2519.718,0.000425,64]
[349132374,1736983832637,-196.563,0.000425,64]
[349132376,1736983832647,-200.0,0.000425,15]
[349132378,1736983832656,-10000.0,0.000425,55]
[349132380,1736983832665,-200.0,0.000426,15]
[349132382,1736983832674,-147.23999816,0.00042661,120]
[349132384,1736983832686,-338.89644,0.00042661,120]
[349132387,1736983832702,-6266.75749663,0.00042661,120]
[349132389,1736983832712,-6752.89393479,0.00042661,120]
[349132391,1736983832721,-1407.11686664,0.0004267,120]
[349132393,1736983832731,-6752.89393479,0.00042675,120]
[349132395,1736983832741,-1991.87564315,0.00042681,120]
[349132400,1736983832769,-2016.86863925,0.00042681,120]
[349132405,1736983832792,-2026.28565074,0.00042681,120]
[349132408,1736983832801,-6035.02993314,0.00042689,120]
[349132411,1736983832811,-200.0,0.000427,15]
[349132414,1736983832821,-1407.11686664,0.00042707,120]
[349132417,1736983832830,-500.0,0.00042713,2]
[349132420,1736983832840,-2500.0,0.00042713,2]
[349132423,1736983832851,-6035.02993314,0.00042714,120]
[349132426,1736983832861,-2601.60124534,0.0004275,120]
[349132429,1736983832874,-2527.85989938,0.0004275,120]
[349132431,1736983832886,-6347.06082125,0.0004275,120]
[349132434,1736983832895,-11476.52196597,0.00042758,120]
[349132437,1736983832904,-6035.02993314,0.00042763,120]
[349132440,1736983832914,-7263.38632324,0.00042775,120]
[349132442,1736983832926,-4213.13564273,0.00042775,120]
[349132444,1736983832937,-206.34904141,0.00042786,15]
[349132446,1736983832946,-200.0,0.000428,15]
[349132448,1736983832957,-1758.43198637,0.00042802,120]
[349132450,1736983832978,-4276.59794677,0.00042802,120]
[349132452,1736983832988,-11476.52196597,0.0004281,120]
[349132454,1736983832998,-265.6637,0.00042813,2]
[349132456,1736983833009,-3955.19358726,0.00042813,2]
[349132459,1736983833023,-6412.80002,0.00042813,2]
[349132461,1736983833039,-8847.82027718,0.00042813,2]
[349132463,1736983833052,-8244.04161556,0.00042813,2]
[349132465,1736983833063,-533.0243,0.00042813,2]
[349132467,1736983833074,-761.96007256,0.0004288,2]
[349132470,1736983833096,-4239.09,0.00038511,2]
[349132473,1736983833107,-1393.84224462,0.0004288,2]
[349132476,1736983833121,-3116.2716893,0.0004288,2]
[349132604,1736983837984,-156.08928958,0.00037564,2]
[349132605,1736983837994,-4239.09,0.00040437,2]
[349132606,1736983838003,-4239.09,0.00042362,2]
[349132607,1736983838013,-47368.5815847,0.0004288,2]
[349132608,1736983838024,-720.16650024,0.0004288,2]
[349132609,1736983838040,-12800.0,0.0004288,2]
[349132610,1736983838051,-3200.0,0.0004288,2]
[349132611,1736983838063,-32978.54419217,0.0004288,2]
[349132612,1736983838075,-378.00513087,0.0004288,2]
[349132613,1736983838115,-25023.90649331,0.0004288,2]
[349132614,1736983838127,-505.521,0.0004288,2]
[349132615,1736983838139,-360.1629039,0.0004288,2]
[349132616,1736983838151,-1918.13875,0.0004288,2]
[349132617,1736983838163,-93825.44414645,0.0004288,2]
[349132618,1736983838173,-11476.52196597,0.00042898,120]
[349132619,1736983838183,-1309.79311453,0.000429,4]
[349132620,1736983838193,-800.0,0.000429,15]
[349132621,1736983838203,-6752.89393479,0.00042901,120]
[349132622,1736983838213,-2538.9991,0.00042913,2]
[349132623,1736983838222,-75739.0893,0.00042913,2]
[349132624,1736983838232,-5000.0,0.00042913,2]
[349132625,1736983838242,-1309.79311446,0.00042934,4]
[349132626,1736983838252,-6752.89393479,0.00042938,120]
[349132627,1736983838262,-1407.11686664,0.00042955,120]
[349132628,1736983838271,-1407.11686664,0.0004296,120]
[349132629,1736983838285,-1309.79311446,0.00042969,4]
[349132630,1736983838294,-38061.0,0.00042986,120]
[349132631,1736983838304,-330.0,0.00042986,120]
[349132632,1736983838314,-1407.11686664,0.00042987,120]
[349132633,1736983838328,-156.38,0.0004299,2]
[349132634,1736983838337,-156.38,0.0004299,2]
[349132635,1736983838347,-156.38,0.0004299,2]
[349132636,1736983838357,-4986.10217335,0.00042999,30]
[349132637,1736983838368,-5103.195,0.00043,60]
[349132638,1736983838378,-987365.5740357,0.00043,4]
[349132639,1736983838388,-900.0,0.00043,120]
[349132641,1736983838398,-156.38,0.00043003,2]
[349132643,1736983838408,-156.38,0.00043003,2]
[349132645,1736983838417,-1309.79311446,0.00043003,4]
[349132647,1736983838426,-300.0,0.00043012,30]
[349132648,1736983838435,-749553.47863928,0.00043013,37]
[349132649,1736983838445,-170.56575556,0.00043013,30]
[349132651,1736983838455,-500.0,0.00043013,4]
[349132652,1736983838465,-517.06402854,0.00043013,4]
[349132653,1736983838475,-500.0,0.00043013,4]
[349132654,1736983838485,-500.0,0.00043013,4]
[349132655,1736983838494,-500.0,0.00043013,4]
[349132656,1736983838503,-500.0,0.00043013,4]
[349132658,1736983838514,-500.0,0.00043013,4]
[349132660,1736983838523,-500.0,0.00043013,4]
[349132662,1736983838537,-500.0,0.00043013,4]
[349132663,1736983838547,-500.0,0.00043013,4]
[349132664,1736983838557,-500.0,0.00043013,4]
[349132665,1736983838566,-500.0,0.00043013,4]
[349132666,1736983838576,-502.76734816,0.00043013,4]
[349132667,1736983838586,-489.91980348,0.00043013,4]
[349132668,1736983838596,-500.0,0.00043013,4]
[349132669,1736983838605,-500.0,0.00043013,4]
[349132670,1736983838614,-500.0,0.00043013,4]
[349132671,1736983838624,-500.0,0.00043013,4]
[349132672,1736983838634,-500.0,0.00043013,4]
[349132673,1736983838643,-500.0,0.00043013,4]
[349132674,1736983838653,-500.0,0.00043013,4]
[349132675,1736983838663,-500.0,0.00043013,4]
[349132676,1736983838672,-500.0,0.00043013,4]
[349132677,1736983838682,-500.0,0.00043013,4]
[349132678,1736983838691,-500.0,0.00043013,4]
[349132679,1736983838701,-500.0,0.00043013,4]
[349132680,1736983838710,-500.0,0.00043013,4]
[349132681,1736983838719,-500.0,0.00043013,4]
[349132682,1736983838729,-500.0,0.00043013,4]
[349132683,1736983838739,-500.0,0.00043013,4]
[349132684,1736983838748,-500.0,0.00043013,4]
[349132685,1736983838758,-500.0,0.00043013,4]
[349132686,1736983838767,-500.0,0.00043013,4]
[349132687,1736983838777,-500.0,0.00043013,4]
[349132688,1736983838789,-500.0,0.00043013,4]
[349132689,1736983838799,-252.13485466,0.00043013,4]
[349132690,1736983838808,-500.0,0.00043013,4]
[349132691,1736983838818,-500.0,0.00043013,4]
[349132692,1736983838827,-500.0,0.00043013,4]
[349132693,1736983838837,-500.0,0.00043013,4]
[349132694,1736983838847,-500.0,0.00043013,4]
[349132695,1736983838857,-500.0,0.00043013,4]
[349132696,1736983838866,-500.0,0.00043013,4]
[349132697,1736983838876,-500.0,0.00043013,4]
[349132698,1736983838885,-500.0,0.00043013,4]
[349132699,1736983838896,-500.0,0.00043013,4]
[349132700,1736983838905,-500.0,0.00043013,4]
[349132701,1736983838915,-500.0,0.00043013,4]
[349132702,1736983838925,-500.0,0.00043013,4]
[349132703,1736983838935,-502.37719364,0.00043013,4]
[349132704,1736983838945,-500.0,0.00043013,4]
[349132705,1736983838955,-500.0,0.00043013,4]
[349132706,1736983838964,-500.0,0.00043013,4]
[349132707,1736983838974,-500.0,0.00043013,4]
[349132708,1736983838984,-500.0,0.00043013,4]
[349132709,1736983838994,-500.0,0.00043013,4]
[349132710,1736983839003,-500.0,0.00043013,4]
[349132711,1736983839013,-500.0,0.00043013,4]
[349132712,1736983839023,-500.0,0.00043013,4]
[349132713,1736983839036,-500.0,0.00043013,4]
[349132714,1736983839047,-500.0,0.00043013,4]
[349132715,1736983839056,-500.0,0.00043013,4]
[349132716,1736983839066,-500.0,0.00043013,4]
[349132717,1736983839075,-500.0,0.00043013,4]
[349132718,1736983839084,-500.0,0.00043013,4]
[349132719,1736983839094,-500.0,0.00043013,4]
[349132720,1736983839104,-500.0,0.00043013,4]
[349132721,1736983839114,-500.0,0.00043013,4]
[349132722,1736983839123,-500.0,0.00043013,4]
[349132723,1736983839133,-500.0,0.00043013,4]
[349132724,1736983839143,-500.0,0.00043013,4]
[349132725,1736983839154,-500.0,0.00043013,4]
[349132726,1736983839163,-359.97043443,0.00043013,4]
[349132727,1736983839173,-500.0,0.00043013,4]
[349132728,1736983839183,-500.0,0.00043013,4]
[349132729,1736983839192,-263.24857275,0.00043013,4]
[349132730,1736983839201,-500.0,0.00043013,4]
[349132731,1736983839211,-500.0,0.00043013,4]
[349132732,1736983839220,-500.0,0.00043013,4]
[349132733,1736983839230,-500.0,0.00043013,4]
[349132734,1736983839239,-500.0,0.00043013,4]
[349132735,1736983839248,-500.0,0.00043013,4]
[349132736,1736983839258,-433.15052888,0.00043013,4]
[349132737,1736983839267,-500.0,0.00043013,4]
[349132738,1736983839439,-500.0,0.00043013,4]
[349132739,1736983839448,-500.0,0.00043013,4]
[349132740,1736983839457,-501.35544198,0.00043013,4]
[349132741,1736983839467,-500.0,0.00043013,4]
[349132742,1736983839475,-500.0,0.00043013,4]
[349132743,1736983839484,-500.0,0.00043013,4]
[349132744,1736983839493,-500.0,0.00043013,4]
[349132745,1736983839502,-500.0,0.00043013,4]
[349132746,1736983839511,-500.0,0.00043013,4]
[349132747,1736983839521,-500.0,0.00043013,4]
[349132748,1736983839533,-500.0,0.00043013,4]
[349132749,1736983839542,-500.0,0.00043013,4]
[349132750,1736983839552,-500.0,0.00043013,4]
[349132751,1736983839561,-500.0,0.00043013,4]
[349132752,1736983839570,-500.0,0.00043013,4]
[349132753,1736983839579,-500.0,0.00043013,4]
[349132754,1736983839588,-500.0,0.00043013,4]
[349132755,1736983839596,-500.0,0.00043013,4]
[349132756,1736983839605,-500.0,0.00043013,4]
[349132757,1736983839614,-500.0,0.00043013,4]
[349132758,1736983839623,-500.0,0.00043013,4]
[349132759,1736983839632,-500.0,0.00043013,4]
[349132760,1736983839641,-500.0,0.00043013,4]
[349132761,1736983839650,-500.0,0.00043013,4]
[349132762,1736983839659,-500.0,0.00043013,4]
[349132763,1736983839667,-500.0,0.00043013,4]
[349132764,1736983839676,-500.0,0.00043013,4]
[349132765,1736983839685,-500.0,0.00043013,4]
[349132766,1736983839694,-500.0,0.00043013,4]
[349132767,1736983839703,-500.0,0.00043013,4]
[349132768,1736983839712,-500.0,0.00043013,4]
[349132769,1736983839720,-500.0,0.00043013,4]
[349132770,1736983839729,-500.0,0.00043013,4]
[349132771,1736983839738,-500.0,0.00043013,4]
[349132772,1736983839747,-500.0,0.00043013,4]
[349132773,1736983839756,-500.0,0.00043013,4]
[349132774,1736983839765,-500.0,0.00043013,4]
[349132775,1736983839774,-500.0,0.00043013,4]
[349132776,1736983839787,-500.0,0.00043013,4]
[349132778,1736983839796,-501.67156521,0.00043013,4]
[349132780,1736983839806,-500.0,0.00043013,4]
[349132781,1736983839814,-500.0,0.00043013,4]
[349132782,1736983839823,-500.0,0.00043013,4]
[349132783,1736983839833,-500.0,0.00043013,4]
[349132784,1736983839842,-500.0,0.00043013,4]
[349132785,1736983839850,-500.0,0.00043013,4]
[349132786,1736983839860,-500.0,0.00043013,4]
[349132787,1736983839869,-500.0,0.00043013,4]
[349132788,1736983839878,-500.0,0.00043013,4]
[349132789,1736983839888,-500.0,0.00043013,4]
[349132790,1736983839897,-500.0,0.00043013,4]
[349132791,1736983839906,-500.0,0.00043013,4]
[349132792,1736983839915,-500.0,0.00043013,4]
[349132793,1736983839924,-500.0,0.00043013,4]
[349132794,1736983839934,-500.0,0.00043013,4]
[349132795,1736983839943,-500.0,0.00043013,4]
[349132796,1736983839954,-500.0,0.00043013,4]
[349132797,1736983839964,-500.0,0.00043013,4]
[349132798,1736983839974,-500.0,0.00043013,4]
[349132799,1736983839985,-500.0,0.00043013,4]
[349132800,1736983839995,-500.0,0.00043013,4]
[349132802,1736983840005,-500.0,0.00043013,4]
[349132803,1736983840015,-500.0,0.00043013,4]
[349132804,1736983840025,-500.0,0.00043013,4]
[349132805,1736983840042,-500.0,0.00043013,4]
[349132806,1736983840052,-500.0,0.00043013,4]
[349132807,1736983840062,-500.0,0.00043013,4]
[349132808,1736983840072,-500.0,0.00043013,4]
[349132809,1736983840083,-500.0,0.00043013,4]
[349132810,1736983840093,-500.0,0.00043013,4]
[349132811,1736983840104,-500.0,0.00043013,4]
[349132812,1736983840114,-500.0,0.00043013,4]
[349132813,1736983840124,-500.0,0.00043013,4]
[349132814,1736983840134,-500.0,0.00043013,4]
[349132815,1736983840144,-500.0,0.00043013,4]
[349132816,1736983840154,-500.0,0.00043013,4]
[349132817,1736983840164,-500.0,0.00043013,4]
[349132818,1736983840173,-500.0,0.00043013,4]
[349132819,1736983840183,-500.0,0.00043013,4]
[349132820,1736983840193,-500.0,0.00043013,4]
[349132821,1736983840202,-500.0,0.00043013,4]
[349132822,1736983840212,-500.0,0.00043013,4]
[349132823,1736983840222,-500.0,0.00043013,4]
[349132824,1736983840232,-500.0,0.00043013,4]
[349132825,1736983840241,-500.0,0.00043013,4]
[349132826,1736983840250,-500.0,0.00043013,4]
[349132827,1736983840260,-500.0,0.00043013,4]
[349132828,1736983840270,-500.0,0.00043013,4]
[349132829,1736983840280,-500.0,0.00043013,4]
[349132830,1736983840294,-500.0,0.00043013,4]
[349132831,1736983840303,-500.0,0.00043013,4]
[349132832,1736983840313,-500.0,0.00043013,4]
[349132833,1736983840325,-500.0,0.00043013,4]
[349132834,1736983840334,-309.30639086,0.00043013,4]
[349132835,1736983840344,-500.0,0.00043013,4]
[349132836,1736983840353,-500.0,0.00043013,4]
[349132837,1736983840364,-500.0,0.00043013,4]
[349132838,1736983840374,-500.0,0.00043013,4]
[349132839,1736983840383,-500.0,0.00043013,4]
[349132840,1736983840393,-500.0,0.00043013,4]
[349132841,1736983840403,-500.0,0.00043013,4]
[349132842,1736983840413,-500.0,0.00043013,4]
[349132843,1736983840423,-500.0,0.00043013,4]
[349132844,1736983840434,-500.0,0.00043013,4]
[349132845,1736983840443,-500.0,0.00043013,4]
[349132846,1736983840453,-500.86172353,0.00043013,4]
[349132847,1736983840463,-500.0,0.00043013,4]
[349132848,1736983840473,-500.0,0.00043013,4]
[349132849,1736983840483,-500.0,0.00043013,4]
[349132850,1736983840493,-500.0,0.00043013,4]
[349132851,1736983840502,-500.0,0.00043013,4]
[349132852,1736983840512,-500.0,0.00043013,4]
[349132853,1736983840522,-500.0,0.00043013,4]
[349132854,1736983840535,-500.0,0.00043013,4]
[349132855,1736983840545,-500.0,0.00043013,4]
[349132856,1736983840555,-500.0,0.00043013,4]
[349132857,1736983840564,-500.0,0.00043013,4]
[349132858,1736983840573,-500.0,0.00043013,4]
[349132859,1736983840583,-500.0,0.00043013,4]
[349132860,1736983840593,-500.0,0.00043013,4]
[349132861,1736983840603,-500.0,0.00043013,4]
[349132862,1736983840612,-500.0,0.00043013,4]
[349132863,1736983840622,-500.0,0.00043013,4]
[349132864,1736983840631,-500.0,0.00043013,4]
[349132865,1736983840641,-500.0,0.00043013,4]
[349132866,1736983840651,-500.0,0.00043013,4]
[349132867,1736983840660,-500.0,0.00043013,4]
[349132868,1736983840670,-500.0,0.00043013,4]
[349132869,1736983840679,-500.0,0.00043013,4]
[349132870,1736983840689,-500.0,0.00043013,4]
[349132871,1736983840698,-500.0,0.00043013,4]
[349132872,1736983840708,-500.0,0.00043013,4]
[349132873,1736983840717,-500.0,0.00043013,4]
[349132874,1736983840727,-500.0,0.00043013,4]
[349132875,1736983840737,-500.0,0.00043013,4]
[349132876,1736983840747,-500.0,0.00043013,4]
[349132877,1736983840757,-500.0,0.00043013,4]
[349132878,1736983840768,-500.0,0.00043013,4]
[349132879,1736983840778,-500.0,0.00043013,4]
[349132880,1736983840793,-500.0,0.00043013,4]
[349132881,1736983840803,-500.0,0.00043013,4]
[349132882,1736983840813,-500.0,0.00043013,4]
[349132883,1736983840823,-500.0,0.00043013,4]
[349132884,1736983840834,-500.0,0.00043013,4]
[349132885,1736983840844,-500.0,0.00043013,4]
[349132886,1736983840853,-500.0,0.00043013,4]
[349132887,1736983840863,-500.0,0.00043013,4]
[349132888,1736983840873,-500.0,0.00043013,4]
[349132889,1736983840883,-419.00928693,0.00043013,4]
[349132890,1736983840893,-500.0,0.00043013,4]
[349132891,1736983840903,-500.0,0.00043013,4]
[349132892,1736983840912,-500.0,0.00043013,4]
[349132893,1736983840922,-500.0,0.00043013,4]
[349132894,1736983840931,-500.0,0.00043013,4]
[349132895,1736983840941,-500.0,0.00043013,4]
[349132896,1736983840951,-500.0,0.00043013,4]
[349132897,1736983840961,-500.0,0.00043013,4]
[349132898,1736983840970,-500.0,0.00043013,4]
[349132899,1736983840980,-500.0,0.00043013,4]
[349132900,1736983840990,-500.0,0.00043013,4]
[349132901,1736983841000,-500.0,0.00043013,4]
[349132902,1736983841010,-500.0,0.00043013,4]
[349132903,1736983841019,-500.0,0.00043013,4]
[349132904,1736983841029,-500.0,0.00043013,4]
[349132905,1736983841046,-510.05912143,0.00043013,4]
[349132906,1736983841056,-500.0,0.00043013,4]
[349132907,1736983841066,-502.48441221,0.00043013,4]
[349132908,1736983841076,-500.0,0.00043013,4]
[349132909,1736983841086,-500.0,0.00043013,4]
[349132910,1736983841095,-500.0,0.00043013,4]
[349132911,1736983841105,-500.0,0.00043013,4]
[349132912,1736983841114,-500.0,0.00043013,4]
[349132913,1736983841123,-500.0,0.00043013,4]
[349132914,1736983841133,-500.0,0.00043013,4]
[349132915,1736983841143,-500.0,0.00043013,4]
[349132916,1736983841153,-500.0,0.00043013,4]
[349132917,1736983841163,-500.0,0.00043013,4]
[349132918,1736983841173,-500.0,0.00043013,4]
[349132919,1736983841183,-500.0,0.00043013,4]
[349132920,1736983841193,-500.0,0.00043013,4]
[349132921,1736983841202,-232.34832248,0.00043013,4]
[349132922,1736983841212,-500.0,0.00043013,4]
[349132923,1736983841222,-500.0,0.00043013,4]
[349132924,1736983841231,-500.0,0.00043013,4]
[349132925,1736983841240,-500.0,0.00043013,4]
[349132926,1736983841250,-500.0,0.00043013,4]
[349132927,1736983841260,-500.0,0.00043013,4]
[349132928,1736983841269,-500.0,0.00043013,4]